bitfinex-derivatives/quotes_ETHF0:USTF0_20260116
["timestamp","ask_amount","ask_price","bid_price","bid_amount"]
[1768592233993,0.9199883,3278.8,3277.5,0.00343226]
[1768592234192,0.15075964,3279.1,3277.5,0.00343226]
[1768592234391,0.92023755,3279.0,3277.5,0.00343226]
[1768592234591,0.92023755,3278.9,3277.6,0.00343226]
[1768592234792,0.92023755,3278.8,3277.5,0.00343226]
[1768592235095,0.9202104,3278.7,3277.5,0.00343226]
[1768592235301,0.15075964,3279.1,3277.6,0.00343226]
[1768592235498,0.92023559,3279.0,3277.5,0.00343226]
[1768592235703,0.92023559,3278.9,3277.5,0.00343226]
[1768592235896,0.92023559,3278.8,3277.6,0.00343226]
[1768592236199,0.92023559,3278.7,3277.5,0.00343226]
[1768592236402,0.15075964,3279.1,3277.5,0.00343226]
[1768592236593,1.07111298,3279.0,3277.6,0.00343226]
[1768592236794,0.92035334,3278.9,3277.5,0.00343226]
[1768592236994,0.92035334,3278.9,3277.6,0.00343226]
[1768592237195,0.15075964,3278.8,3277.6,0.00343226]
[1768592237396,0.92035334,3278.7,3277.7,0.00343226]
[1768592237696,0.92035334,3278.7,3277.5,0.00343226]
[1768592238494,0.92035334,3278.7,3277.8,0.00343226]
[1768592238694,0.92035334,3278.7,3277.5,0.00343226]
[1768592238895,0.92035334,3278.7,3277.1,0.15261373]
[1768592239103,0.92035334,3278.7,3277.6,0.00343226]
[1768592239506,0.92035334,3278.7,3277.9,0.00343226]
[1768592239695,0.92035334,3278.7,3277.6,0.00343226]
[1768592240196,0.92035334,3278.7,3277.9,0.00343226]
[1768592240397,0.92035334,3278.7,3277.6,0.00343226]
[1768592241104,0.92035334,3278.7,3277.9,0.00343226]
[1768592241307,0.92035334,3278.7,3277.6,0.00343226]
[1768592241906,1.07630346,3278.7,3277.9,0.00343226]
[1768592242112,0.15595012,3278.7,3277.6,0.00343226]
[1768592242606,0.15595012,3278.7,3277.9,0.00343226]
[1768592242807,0.15595012,3278.7,3277.6,0.00343226]
[1768592243807,0.15595012,3278.7,3277.9,0.00343226]
[1768592244014,0.15595012,3278.7,3277.1,0.15261373]
[1768592244015,0.15595012,3278.7,3277.6,0.00343226]
[1768592244615,0.15595012,3278.7,3277.9,0.00343226]
[1768592244912,0.15595012,3278.7,3277.7,0.00343226]
[1768592245114,0.15595012,3278.7,3277.1,0.15261373]
[1768592245306,0.15595012,3278.7,3277.7,0.00343226]
[1768592245507,0.15256,3278.8,3277.7,0.00343226]
[1768592245706,0.92129936,3278.7,3278.0,0.00343226]
[1768592245906,0.15256,3278.8,3277.7,0.00343226]
[1768592246108,0.92130262,3278.7,3277.7,0.00343226]
[1768592246306,0.15256,3278.8,3278.0,0.00343226]
[1768592246508,0.92137963,3278.7,3277.7,0.00343226]
[1768592246709,0.15256,3278.8,3277.7,0.00343226]
[1768592246908,0.15253,3279.4,3278.2,0.00343226]
[1768592247115,1.20102728,3279.3,3277.4,0.14697233]
[1768592247320,0.92139201,3279.2,3278.1,0.00343226]
[1768592247519,0.92139201,3279.1,3278.0,0.00343226]
[1768592247813,0.92139201,3279.0,3278.2,0.00343226]
[1768592248004,0.92139201,3278.9,3278.2,0.00343226]
[1768592248210,0.30848012,3279.4,3278.4,0.00343226]
[1768592248407,1.19338315,3279.3,3278.2,0.00343226]
[1768592248615,1.07737279,3279.2,3278.1,0.00343226]
[1768592248815,1.07737279,3279.1,3277.9,0.00343226]
[1768592249116,0.92142267,3279.0,3277.9,0.00343226]
[1768592249317,0.92142267,3278.9,3278.3,0.00343226]
[1768592249519,0.15595012,3279.1,3278.0,0.00343226]
[1768592249816,0.92133964,3279.0,3278.0,0.00343226]
[1768592250014,0.92133964,3278.9,3278.3,0.00343226]
[1768592250215,0.15595012,3279.1,3278.1,0.00343226]
[1768592250412,0.92131718,3279.0,3278.1,0.00343226]
[1768592250620,0.92131718,3278.9,3278.4,0.00343226]
[1768592250827,0.15595012,3279.1,3278.0,0.00343226]
[1768592251016,0.92132057,3279.0,3278.0,0.00343226]
[1768592251218,0.92132057,3278.9,3278.4,0.00343226]
[1768592251517,0.15595012,3279.1,3278.1,0.00343226]
[1768592251720,0.921278,3279.0,3278.1,0.00343226]
[1768592251918,0.921278,3278.9,3278.4,0.00343226]
[1768592252122,0.15595012,3279.1,3278.1,0.00343226]
[1768592252331,0.92127837,3279.0,3278.1,0.00343226]
[1768592252518,0.92127837,3278.9,3278.4,0.00343226]
[1768592252815,0.15595012,3279.1,3278.2,0.00343226]
[1768592253015,0.92123125,3279.0,3278.2,0.00343226]
[1768592253215,0.15595012,3279.1,3277.6,40.96033657]
[1768592253216,0.92123125,3278.9,3278.5,0.00343226]
[1768592253516,0.15595012,3279.1,3278.2,0.00343226]
[1768592253715,0.92137194,3279.0,3278.1,0.00343226]
[1768592253920,0.92137194,3278.9,3278.2,0.00343226]
[1768592254226,0.15595012,3279.1,3278.5,0.00343226]
[1768592254524,0.92129092,3279.0,3278.2,0.00343226]
[1768592254724,0.92129092,3278.9,3278.2,0.00343226]
[1768592254925,0.15595012,3279.1,3278.5,0.00343226]
[1768592255115,0.92125189,3279.0,3278.2,0.00343226]
[1768592255316,0.92125189,3278.9,3278.1,0.00343226]
[1768592255517,0.15254,3279.3,3278.1,0.00343226]
[1768592255832,0.92121826,3279.2,3278.6,0.00343226]
[1768592256011,0.92121826,3279.2,3277.8,0.99328492]
[1768592256012,0.92121826,3279.1,3278.4,0.00343226]
[1768592256210,0.92121826,3279.0,3278.5,0.00343226]
[1768592256422,0.15254,3279.3,3277.8,0.99328492]
[1768592256622,0.92117125,3279.2,3277.8,0.99328492]
[1768592256920,0.92117125,3279.1,3277.8,0.99328492]
[1768592257127,0.92117125,3279.0,3278.5,0.00343226]
[1768592257426,0.29931372,3279.3,3277.6,40.8]
[1768592257621,0.92113389,3279.2,3277.6,40.8]
[1768592257820,0.92113389,3279.1,3277.6,40.8]
[1768592258022,0.92113389,3279.0,3277.6,40.96033657]
[1768592258218,0.29931372,3279.3,3277.6,40.96033657]
[1768592258418,0.92120065,3279.2,3277.6,40.96033657]
[1768592258722,0.92120065,3279.1,3277.6,40.96033657]
[1768592258928,0.92120065,3279.0,3277.6,40.96033657]
[1768592259230,0.29931372,3279.3,3277.6,40.96033657]
[1768592259418,0.92137501,3279.2,3277.6,40.96033657]
[1768592259615,0.92137501,3279.1,3277.6,40.96033657]
[1768592259821,0.92137501,3279.0,3277.6,40.96033657]
[1768592260124,0.92137532,3278.9,3277.6,0.16033657]
[1768592260326,0.14677372,3279.2,3277.6,0.16033657]
[1768592260527,0.14677372,3279.0,3277.6,0.16033657]
[1768592260727,0.92154605,3278.9,3277.6,0.16033657]
[1768592260925,0.92154605,3278.9,3277.4,0.99328492]
[1768592260926,0.14677372,3278.7,3277.2,0.16033657]
[1768592262231,0.92190198,3278.6,3277.2,0.16033657]
[1768592262420,0.14677372,3278.7,3277.2,0.16033657]
[1768592262620,0.9219052,3278.6,3277.2,0.16033657]
[1768592262829,0.14677372,3278.7,3277.2,0.16033657]
[1768592263031,0.92190606,3278.6,3277.2,0.16033657]
[1768592263230,0.14677372,3278.7,3277.2,0.16033657]
[1768592263426,0.92190978,3278.6,3277.2,0.16033657]
[1768592263627,0.14677372,3278.7,3277.2,0.16033657]
[1768592263826,0.921909,3278.6,3277.2,0.16033657]
[1768592264026,0.14677372,3278.7,3277.2,0.16033657]
[1768592264226,0.92188431,3278.6,3277.2,0.16033657]
[1768592264522,0.92188431,3278.6,3277.1,40.95264]
[1768592264523,0.14677372,3278.7,3276.8,0.16033657]
[1768592264723,0.14677372,3278.5,3276.8,0.16033657]
[1768592264922,1.06859475,3278.4,3276.8,0.16033657]
[1768592265130,0.14677372,3278.4,3276.9,40.8]
[1768592265628,0.14677372,3278.4,3276.8,1.15362149]
[1768592266223,0.14677372,3278.4,3276.8,41.95362149]
[1768592266930,0.14677372,3278.4,3276.9,0.16033657]
[1768592269232,0.15256,3278.7,3276.9,0.16033657]
[1768592269435,0.92153224,3278.6,3276.9,0.16033657]
[1768592269624,0.92153224,3278.5,3276.9,0.16033657]
[1768592269825,0.15256,3278.7,3276.9,0.16033657]
[1768592270026,0.92414992,3278.6,3276.9,0.16033657]
[1768592270231,0.92414992,3278.5,3276.9,0.16033657]
[1768592270531,0.29933372,3278.7,3276.9,0.16033657]
[1768592270724,0.92410618,3278.6,3276.9,0.16033657]
[1768592270925,0.92410618,3278.5,3276.9,0.16033657]
[1768592271129,0.29933372,3278.7,3276.9,0.16033657]
[1768592271438,0.92406495,3278.6,3276.9,0.16033657]
[1768592271633,0.92406495,3278.5,3276.9,0.16033657]
[1768592271835,0.15021635,3278.6,3276.9,0.16033657]
[1768592272037,1.07427964,3278.5,3276.9,0.16033657]
[1768592272230,0.15021635,3278.5,3276.9,0.16033657]
[1768592273426,0.15021635,3278.5,3277.3,0.99363307]
[1768592277239,0.15021635,3278.5,3276.9,0.16033657]
[1768592277439,0.15021635,3278.5,3277.3,0.99363307]
[1768592278123,1.14384942,3278.5,3277.1,0.99363307]
[1768592278335,0.15021635,3278.4,3277.1,0.99363307]
[1768592279939,0.30279635,3278.4,3277.1,0.99363307]
[1768592280238,0.99363307,3278.0,3276.8,4.236]
[1768592280434,0.99363307,3277.8,3276.5,3.98844637]
[1768592280630,0.99363307,3277.6,3276.5,0.00318112]
[1768592281137,1.14624307,3277.8,3276.5,0.00318112]
[1768592284138,0.15261,3277.8,3276.6,0.99363307]
[1768592285143,0.30282635,3277.8,3276.5,0.00318112]
[1768592285742,1.29645942,3277.8,3276.5,0.00318112]
[1768592286142,0.15021635,3277.7,3276.5,0.00318112]
[1768592286342,0.15021635,3277.6,3276.5,0.00318112]
[1768592286646,0.15262,3277.4,3276.5,0.00318112]
[1768592286841,0.1563666,3277.4,3276.5,0.00318112]
[1768592287243,0.30658295,3277.4,3276.5,0.00318112]
[1768592287639,0.99363307,3277.3,3276.5,0.00318112]
[1768592287838,1.14384942,3277.0,3275.3,3.98526525]
[1768592288038,0.15021635,3276.9,3275.5,0.99363307]
[1768592288245,0.15021635,3276.9,3275.7,0.99363307]
[1768592288848,0.15021635,3276.9,3275.7,0.9960551]
[1768592290451,0.15021635,3276.9,3275.9,0.99363307]
[1768592291651,0.15264,3277.0,3276.4,0.99363307]
[1768592291950,0.15264,3277.0,3276.1,0.99363307]
[1768592305255,0.0037466,3277.4,3276.3,0.99363307]
[1768592305442,0.0037466,3277.4,3276.5,0.99363307]
[1768592308756,0.15261,3277.6,3277.0,0.99363307]
[1768592308947,0.15261,3277.6,3276.8,0.99363307]
[1768592310057,0.1556529,3277.6,3276.8,0.99363307]
[1768592310258,0.1556529,3277.6,3276.7,0.99363307]
[1768592314161,0.1556529,3277.6,3276.6,0.15784903]
[1768592314356,0.1556529,3277.6,3276.5,0.99363307]
[1768592314552,0.1556529,3277.6,3276.3,0.99363307]
[1768592314857,0.99363307,3277.4,3276.2,0.15187679]
[1768592315059,0.99363307,3277.2,3275.9,0.99363307]
[1768592316061,0.15263,3277.3,3275.9,0.99363307]
[1768592317357,0.15263,3277.3,3276.1,0.99363307]
[1768592318764,0.15263,3277.3,3276.3,0.99363307]
[1768592319671,0.15263,3277.3,3276.5,0.99363307]
[1768592319860,0.15263,3277.3,3276.1,0.15187679]
[1768592319861,0.15263,3277.3,3276.7,0.99363307]
[1768592322475,0.15263,3277.3,3276.1,0.15187679]
[1768592322676,0.15263,3277.3,3276.3,0.99363307]
[1768592325379,0.15263,3277.3,3276.3,1.14550986]
[1768592325574,0.15263,3277.3,3276.5,0.99363307]
[1768592325880,0.0030429,3277.6,3276.8,0.99363307]
[1768592326078,0.0030429,3277.6,3277.0,0.99363307]
[1768592326774,0.0030429,3277.6,3276.8,0.99363307]
[1768592328877,0.0030429,3277.6,3277.0,0.99363307]
[1768592329083,0.1526,3278.0,3277.0,1.14550986]
[1768592329277,0.92773633,3277.9,3277.0,1.14550986]
[1768592329474,0.1526,3278.0,3277.0,1.14550986]
[1768592329688,0.1526,3278.0,3277.2,0.99363307]
[1768592330079,0.15593156,3278.0,3277.2,0.99363307]
[1768592330286,0.00333156,3278.0,3277.2,0.99363307]
[1768592332882,0.00333156,3278.0,3277.0,1.14550986]
[1768592333380,0.00333156,3278.0,3277.0,0.15187679]
[1768592340097,0.15258,3278.4,3277.0,0.15187679]
[1768592340298,0.15258,3278.4,3277.5,0.14874617]
[1768592341089,0.30370494,3279.1,3277.5,0.14874617]
[1768592341302,0.00264489,3278.4,3277.5,0.14874617]
[1768592344486,0.15255,3279.0,3277.5,0.14874617]
[1768592344686,0.15255,3279.0,3277.0,0.15264]
[1768592344687,0.15255,3279.0,3277.9,0.14874617]
[1768592345205,0.15115494,3279.5,3277.9,0.14874617]
[1768592345497,1.07752967,3279.4,3277.9,0.14874617]
[1768592345800,0.92499967,3279.3,3277.9,0.14874617]
[1768592346096,0.15253,3279.4,3277.9,0.14874617]
[1768592347902,0.92474683,3279.3,3277.9,0.14874617]
[1768592348106,0.92474683,3279.2,3277.9,0.14874617]
[1768592348405,0.15253,3279.4,3277.9,0.14874617]
[1768592348588,0.92462278,3279.3,3277.9,0.14874617]
[1768592348791,0.15253,3279.4,3277.9,0.14874617]
[1768592348990,0.92462321,3279.3,3277.9,0.14874617]
[1768592349195,0.15253,3279.4,3277.9,0.14874617]
[1768592349399,0.92450573,3279.3,3277.9,0.14874617]
[1768592349600,0.15253,3279.4,3277.9,0.14874617]
[1768592349800,0.92450593,3279.3,3277.9,0.14874617]
[1768592350000,0.15253,3279.4,3277.9,0.14874617]
[1768592350200,0.92450499,3279.3,3277.9,0.14874617]
[1768592350403,0.92450499,3279.2,3277.9,0.14874617]
[1768592350595,0.15253,3279.4,3277.9,0.14874617]
[1768592350794,0.92444036,3279.3,3277.9,0.14874617]
[1768592350995,0.92444036,3279.2,3277.9,0.14874617]
[1768592351297,0.15253,3279.4,3277.9,0.14874617]
[1768592351497,0.92437374,3279.3,3277.9,0.14874617]
[1768592351698,0.15253,3279.4,3277.9,0.14874617]
[1768592351897,0.92437447,3279.3,3277.9,0.14874617]
[1768592352101,0.15253,3279.4,3277.9,0.14874617]
[1768592352399,0.92421678,3279.3,3277.9,0.14874617]
[1768592352600,0.15253,3279.4,3277.9,0.14874617]
[1768592352800,0.92419508,3279.3,3277.9,0.14874617]
[1768592352995,0.15253,3279.4,3277.9,0.14874617]
[1768592353196,0.92419989,3279.3,3277.9,0.14874617]
[1768592353397,0.92419989,3279.2,3277.9,0.14874617]
[1768592353597,0.15253,3279.4,3277.9,0.14874617]
[1768592353798,0.92428196,3279.3,3277.9,0.14874617]
[1768592353999,0.15253,3279.4,3277.9,0.14874617]
[1768592354305,0.9242814,3279.3,3277.9,0.14874617]
[1768592354606,0.15253,3279.4,3277.9,0.14874617]
[1768592354805,0.92447294,3279.3,3277.9,0.14874617]
[1768592354998,0.15253,3279.4,3277.9,0.14874617]
[1768592355200,0.92447259,3279.3,3277.9,0.14874617]
[1768592355396,0.92447259,3279.2,3277.9,0.14874617]
[1768592355596,0.15253,3279.4,3277.9,0.14874617]
[1768592355796,0.92466129,3279.3,3277.9,0.14874617]
[1768592355995,0.92466129,3279.2,3277.9,0.14874617]
[1768592356199,0.15253,3279.4,3277.9,0.14874617]
[1768592356408,0.92477815,3279.3,3277.9,0.14874617]
[1768592356609,0.15253,3279.4,3277.9,0.14874617]
[1768592356812,0.92477962,3279.3,3277.9,0.14874617]
[1768592357014,0.15253,3279.4,3277.9,0.14874617]
[1768592357200,1.07593376,3279.3,3277.5,0.14874617]
[1768592357402,0.15255,3279.0,3277.5,0.14874617]
[1768592357708,0.30370494,3279.0,3277.5,0.14874617]
[1768592357912,0.15115494,3278.8,3277.1,0.14874617]
[1768592358104,0.15115494,3278.8,3277.2,40.94874617]
[1768592358296,0.30371494,3278.8,3277.2,40.94874617]
[1768592359314,0.30371494,3278.7,3277.2,0.14874617]
[1768592359506,0.30372494,3278.6,3276.8,4.35474617]
[1768592359811,0.15115494,3278.5,3276.8,4.35474617]
[1768592360311,0.15115494,3278.5,3276.8,0.14874617]
[1768592361607,0.15115494,3278.5,3276.9,0.15833436]
[1768592361804,0.15021467,3278.9,3277.2,1.15209698]
[1768592362004,0.92379441,3278.8,3277.2,1.15209698]
[1768592362204,0.92379441,3278.7,3277.2,1.15209698]
[1768592362508,0.92379441,3278.6,3277.2,1.15209698]
[1768592362703,0.15021467,3278.9,3277.2,1.15209698]
[1768592362908,0.92386805,3278.8,3277.3,0.15833436]
[1768592363109,0.92386805,3278.7,3277.3,0.15833436]
[1768592363313,0.30277467,3278.9,3277.3,0.15833436]
[1768592363610,0.92400598,3278.8,3277.3,0.15833436]
[1768592363914,0.92400598,3278.7,3277.3,0.15833436]
[1768592365911,1.07656598,3278.7,3277.3,0.15833436]
[1768592366116,0.92400598,3278.6,3277.3,0.15833436]
[1768592368121,1.22679065,3278.6,3276.9,0.15833436]
[1768592368417,0.15021467,3278.5,3276.9,0.15833436]
[1768592370819,0.30278467,3278.5,3276.9,0.15833436]
[1768592372222,0.30278467,3278.5,3276.4,40.8]
[1768592372223,0.14764966,3278.3,3276.5,0.15260105]
[1768592372513,0.14764966,3278.2,3276.5,4.35960105]
[1768592373020,0.14764966,3278.2,3276.6,0.15260105]
[1768592375318,0.14764966,3277.7,3276.2,0.15260105]
[1768592380732,0.30025966,3277.7,3276.2,0.15260105]
[1768592380935,0.15262,3277.6,3276.2,0.15260105]
[1768592381135,0.15262,3277.5,3276.2,0.15260105]
[1768592383132,0.15262,3277.4,3276.0,4.214]
[1768592383929,0.15263,3277.3,3275.8,40.95260105]
[1768592384628,0.15263,3277.3,3275.8,0.15260105]
[1768592384835,0.15263,3277.2,3275.8,0.15260105]
[1768592385036,0.1564122,3277.2,3275.8,0.15260105]
[1768592386630,0.30406186,3277.2,3275.7,0.00242203]
[1768592391847,0.15264,3277.1,3275.7,0.00242203]
[1768592392148,0.30166908,3277.1,3275.7,0.00242203]
[1768592392545,0.14902908,3277.0,3275.7,0.00242203]
[1768592395350,0.14902908,3277.0,3275.9,0.99451306]
[1768592399950,0.15264,3277.1,3276.1,0.99451306]
[1768592400753,0.15264,3277.1,3275.7,0.16369666]
[1768592400955,0.30166908,3277.0,3275.7,0.00242203]
[1768592401155,0.30166908,3277.0,3275.7,0.99693509]
[1768592402056,0.30166908,3277.0,3275.9,0.99451306]
[1768592402759,0.15264,3277.0,3275.9,0.99451306]
[1768592403053,0.15265,3276.9,3275.9,0.99451306]
[1768592408654,0.15265,3276.9,3275.7,0.00242203]
[1768592408862,0.15265,3276.9,3275.9,0.99451306]
[1768592410351,0.15265,3276.9,3276.1,0.99451306]
[1768592411350,0.0037822,3277.2,3276.7,0.99451306]
[1768592411555,0.14902908,3277.8,3276.7,0.99451306]
[1768592411556,0.15262,3277.5,3276.7,0.99451306]
[1768592411752,0.15262,3277.5,3276.9,0.99451306]
[1768592412553,0.15591401,3277.5,3276.9,0.99451306]
[1768592412752,0.00329401,3277.5,3276.9,0.99451306]
[1768592412953,0.00329401,3277.5,3276.0,0.99451306]
[1768592412954,0.15259,3278.1,3277.2,0.99451306]
[1768592413157,0.92265501,3278.0,3277.2,0.99451306]
[1768592413358,0.92265501,3277.9,3277.2,0.99451306]
[1768592413558,0.92265501,3277.8,3277.2,0.99451306]
[1768592413853,0.00273029,3277.8,3277.2,0.99451306]
[1768592416248,0.00273029,3277.8,3276.7,0.16127463]
[1768592417364,0.99724335,3277.8,3276.4,0.99451306]
[1768592417955,0.99451306,3277.6,3276.2,1.15578769]
[1768592418159,0.99451306,3277.4,3276.2,0.16127463]
[1768592418367,0.99451306,3277.2,3275.8,3.93927463]
[1768592418561,0.99451306,3277.0,3275.8,3.778]
[1768592418862,0.99451306,3277.2,3275.8,3.778]
[1768592419167,0.99451306,3277.0,3275.7,0.99693509]
[1768592419651,1.14714306,3277.2,3275.7,0.99693509]
[1768592420364,1.14714306,3277.2,3275.9,0.99451306]
[1768592420970,0.99451306,3276.5,3275.7,0.00242203]
[1768592421160,0.99451306,3276.5,3275.4,0.16127463]
[1768592421466,1.14717306,3276.7,3275.4,0.16127463]
[1768592422068,1.14717306,3276.7,3275.4,0.16437978]
[1768592422269,1.14717306,3276.7,3275.4,0.00310515]
[1768592422470,0.99451306,3276.5,3275.4,0.00310515]
[1768592422664,0.99451306,3276.3,3275.4,0.00310515]
[1768592422864,0.99451306,3276.3,3275.0,0.1570628]
[1768592423267,0.15267,3276.4,3275.1,0.99451306]
[1768592423763,0.15267,3276.4,3275.1,0.99843746]
[1768592424163,0.15267,3276.4,3275.3,0.99451306]
[1768592425772,0.15267,3276.4,3275.2,0.99451306]
[1768592426178,0.15267,3276.4,3275.4,0.99451306]
[1768592426373,0.15672493,3276.6,3275.4,0.99451306]
[1768592426576,0.30937493,3277.0,3275.6,0.99451306]
[1768592426876,0.91824051,3276.9,3275.9,0.99451306]
[1768592427077,0.91824051,3276.8,3275.7,0.99451306]
[1768592427373,0.15265,3276.9,3275.7,0.99451306]
[1768592427575,0.91807934,3276.8,3275.7,0.99451306]
[1768592427771,0.15265,3276.9,3275.7,0.99451306]
[1768592427962,0.91806974,3276.8,3275.7,0.99451306]
[1768592428166,0.15265,3276.9,3275.7,0.99451306]
[1768592429379,0.15265,3276.9,3276.2,0.99451306]
[1768592429876,0.15265,3276.9,3276.0,0.99451306]
[1768592430776,0.15265,3276.9,3275.8,0.99451306]
[1768592434779,0.15265,3276.9,3275.8,1.15845278]
[1768592434981,0.15265,3276.9,3276.2,0.99451306]
[1768592435282,0.15265,3276.9,3276.0,0.99451306]
[1768592435682,0.15265,3276.9,3275.9,1.15845278]
[1768592443690,0.16389106,3277.4,3276.1,0.99451306]
[1768592443888,1.07040323,3277.3,3276.1,0.99451306]
[1768592444187,0.91777323,3277.2,3276.1,0.99451306]
[1768592444390,0.91777323,3277.1,3276.1,0.99451306]
[1768592444587,0.91777323,3277.0,3276.1,0.99451306]
[1768592444887,0.15263,3277.3,3276.1,0.99451306]
[1768592445077,0.91797994,3277.2,3276.1,0.99451306]
[1768592445275,0.91797994,3277.1,3276.1,0.99451306]
[1768592445473,0.91797994,3277.0,3276.1,0.99451306]
[1768592445677,0.15263,3277.3,3276.1,0.99451306]
[1768592445982,0.9183713,3277.2,3276.1,0.99451306]
[1768592446184,0.9183713,3277.1,3276.1,0.99451306]
[1768592446393,0.9183713,3277.0,3276.1,0.99451306]
[1768592446580,0.9183713,3276.9,3276.1,0.99451306]
[1768592446886,0.15263,3277.3,3276.1,0.99451306]
[1768592447079,0.91884798,3277.2,3276.1,0.99451306]
[1768592447281,0.91884798,3277.1,3276.1,0.99451306]
[1768592447474,0.91884798,3277.0,3276.1,0.99451306]
[1768592447674,0.91884798,3276.9,3276.1,0.99451306]
[1768592447986,0.15263,3277.3,3276.1,0.99451306]
[1768592448186,0.91938294,3277.2,3276.1,0.99451306]
[1768592448379,0.91938294,3277.1,3276.1,0.99451306]
[1768592448580,0.91938294,3277.0,3276.1,0.99451306]
[1768592448778,0.91938294,3276.9,3276.1,0.99451306]
[1768592448976,1.14714306,3277.3,3276.1,0.99451306]
[1768592449179,1.19949897,3277.2,3276.1,0.99451306]
[1768592449393,0.92000133,3277.1,3276.1,0.99451306]
[1768592449581,1.14714306,3277.3,3275.9,0.16393972]
[1768592449582,0.92000133,3277.0,3275.9,1.15845278]
[1768592449778,0.92000133,3276.9,3275.9,1.15845278]
[1768592449982,0.92000133,3276.8,3275.9,1.15845278]
[1768592450282,0.99451306,3277.1,3275.9,0.16393972]
[1768592450483,0.92107326,3277.0,3275.9,0.16393972]
[1768592450782,0.92107326,3276.9,3275.9,0.16393972]
[1768592450988,0.92107326,3276.8,3275.9,0.16393972]
[1768592451178,0.15263,3277.2,3275.9,1.15845278]
[1768592451374,1.20062593,3277.1,3275.9,1.15845278]
[1768592451579,0.92108145,3277.0,3275.9,1.15845278]
[1768592451779,0.92108145,3276.9,3275.9,1.15845278]
[1768592451985,0.92108145,3276.8,3275.9,1.15845278]
[1768592452191,0.15263,3277.2,3275.9,1.15845278]
[1768592452385,1.20037903,3277.1,3275.9,1.15845278]
[1768592452693,0.92089202,3277.0,3276.1,0.99451306]
[1768592452892,0.92089202,3276.9,3276.1,0.99451306]
[1768592453088,0.15263,3277.2,3276.1,0.99451306]
[1768592453089,0.92089202,3276.8,3276.1,0.99451306]
[1768592453393,1.699,3277.6,3276.4,0.99451306]
[1768592453591,1.20061963,3277.5,3276.4,0.99451306]
[1768592453789,1.20061963,3277.4,3276.4,0.99451306]
[1768592453991,0.92107945,3277.3,3276.4,0.99451306]
[1768592454194,0.92107945,3277.2,3276.4,0.99451306]
[1768592454495,0.92107945,3277.1,3276.4,0.99451306]
[1768592454697,0.15262,3277.5,3276.4,0.99451306]
[1768592454889,0.15262,3277.5,3276.1,1.14885287]
[1768592454890,1.34623979,3277.4,3276.1,1.14885287]
[1768592455092,0.99451306,3276.9,3275.6,0.15433981]
[1768592457294,0.15264,3277.1,3275.6,0.15433981]
[1768592457502,0.91990862,3277.0,3275.6,0.15433981]
[1768592457686,0.91990862,3276.9,3275.6,0.15433981]
[1768592457886,0.15264,3277.1,3275.6,0.15433981]
[1768592458086,0.91991094,3277.0,3275.6,0.15433981]
[1768592458286,0.91991094,3276.9,3275.6,0.15433981]
[1768592458488,0.15264,3277.1,3275.6,0.15433981]
[1768592458696,0.92000948,3277.0,3275.6,0.15433981]
[1768592458897,0.92000948,3276.9,3275.6,0.15433981]
[1768592459099,0.15264,3277.1,3275.6,0.15433981]
[1768592459299,0.92007443,3277.0,3275.6,0.15433981]
[1768592460500,0.15004402,3276.8,3275.2,0.15433981]
[1768592460706,0.92007443,3276.7,3275.2,0.15433981]
[1768592460997,0.15004402,3276.8,3275.2,0.15433981]
[1768592461198,0.92002857,3276.7,3275.2,0.15433981]
[1768592461401,0.15004402,3276.8,3275.2,0.15433981]
[1768592461598,0.92001987,3276.7,3275.2,0.15433981]
[1768592461795,0.15004402,3276.8,3275.2,0.15433981]
[1768592461998,0.92002157,3276.7,3275.2,0.15433981]
[1768592462189,0.15004402,3276.8,3275.2,0.15433981]
[1768592462387,0.92002018,3276.7,3275.2,0.15433981]
[1768592462585,0.15004402,3276.8,3275.2,0.15433981]
[1768592462800,0.92002018,3276.7,3275.2,0.15433981]
[1768592463000,0.15004402,3276.8,3275.2,0.15433981]
[1768592463299,0.92002018,3276.7,3275.2,0.15433981]
[1768592463499,0.15004402,3276.8,3275.2,0.15433981]
[1768592463698,0.92001661,3276.7,3275.2,0.15433981]
[1768592463900,0.15004402,3276.8,3275.2,0.15433981]
[1768592464101,0.92001647,3276.7,3275.2,0.15433981]
[1768592464395,0.15004402,3276.8,3275.2,0.15433981]
[1768592464590,0.92002345,3276.7,3275.2,0.15433981]
[1768592464790,0.15004402,3276.8,3275.2,0.15433981]
[1768592464991,0.92002345,3276.7,3275.2,0.15433981]
[1768592465194,0.15004402,3276.8,3275.2,0.15433981]
[1768592465496,0.92001441,3276.7,3275.3,0.15433981]
[1768592465697,0.15004402,3276.8,3275.3,0.15433981]
[1768592465889,0.92001648,3276.7,3275.3,0.15433981]
[1768592466091,0.15265,3276.9,3275.3,0.15433981]
[1768592466293,0.92000805,3276.8,3275.3,0.15433981]
[1768592466494,0.15265,3276.9,3275.7,0.15433981]
[1768592466790,0.92004995,3276.8,3275.7,0.15433981]
[1768592467093,0.15265,3276.9,3275.7,0.15433981]
[1768592467294,0.92003907,3276.8,3275.7,0.15433981]
[1768592467495,0.15265,3276.9,3275.7,0.15433981]
[1768592467695,0.92004502,3276.8,3275.7,0.15433981]
[1768592467995,0.15265,3276.9,3275.7,0.15433981]
[1768592468301,0.9200446,3276.8,3275.7,0.15433981]
[1768592468595,0.15265,3276.9,3275.7,0.15433981]
[1768592468795,0.920046,3276.8,3275.7,0.15433981]
[1768592468998,0.15265,3276.9,3275.7,0.15433981]
[1768592469204,0.92004572,3276.8,3275.7,0.15433981]
[1768592469391,0.15265,3276.9,3275.7,0.15433981]
[1768592469590,0.9200413,3276.8,3275.7,0.15433981]
[1768592469791,0.15265,3276.9,3275.7,0.15433981]
[1768592469994,0.92004179,3276.8,3275.7,0.15433981]
[1768592470203,0.15265,3276.9,3275.7,0.15433981]
[1768592470500,0.92003674,3276.8,3275.7,0.15433981]
[1768592470689,0.15265,3276.9,3275.7,0.15433981]
[1768592470888,0.92003643,3276.8,3275.7,0.15433981]
[1768592471088,0.15265,3276.9,3275.7,0.15433981]
[1768592471291,0.92002758,3276.8,3275.7,0.15433981]
[1768592471487,0.15265,3276.9,3275.7,0.15433981]
[1768592471702,0.92003734,3276.8,3275.7,0.15433981]
[1768592471902,0.15265,3276.9,3275.7,0.15433981]
[1768592472097,0.92003798,3276.8,3275.7,0.15433981]
[1768592472297,0.15265,3276.9,3275.7,0.15433981]
[1768592472596,0.92003783,3276.8,3275.7,0.15433981]
[1768592472797,0.15265,3276.9,3275.7,0.15433981]
[1768592472996,0.92003742,3276.8,3275.7,0.15433981]
[1768592473197,0.15265,3276.9,3275.7,0.15433981]
[1768592473402,0.92003866,3276.8,3275.7,0.15433981]
[1768592473601,0.15265,3276.9,3275.7,0.15433981]
[1768592473801,0.92003866,3276.8,3275.7,0.15433981]
[1768592474102,0.15265,3276.9,3275.7,0.15433981]
[1768592474305,0.92003015,3276.8,3275.7,0.15433981]
[1768592474600,0.15265,3276.9,3275.7,0.15433981]
[1768592474802,0.92003912,3276.8,3275.7,0.15433981]
[1768592475001,0.15265,3276.9,3275.7,0.15433981]